Workbook

Sheet Simulador
B3: 12
F6: R1 | H6: R2
F11: R3 | H11: R4
F15: =IF(Dados!M2=0,"Req = ?",IF(Dados!L2="ABERTO","Req = "&"circuito aberto","Req = "&TEXT(Dados!L2,"#.##0,00")&Dados!I2)) -> Req = ?
F22: R e s p o s t a do aluno
F24: =TEXT(Dados!N2,"#.##0,00")&Dados!I2 -> 0,00 Ω
F27: R e s u l t a d o
F29: =IF(Dados!P2=0,"R e s p o s t a e r r a d a .",IF(Dados!P2=1,"R e s p o s t a c e r t a .","")) -> R e s p o s t a e r r a d a .
F30: =IF(Dados!P2=0,"T e n t e n o v a m e n t e .",IF(Dados!P2=1,"P a r a b é n s !","")) -> T e n t e n o v a m e n t e .

Sheet Dados (hidden)
A1: Célula | B1: Auxiliar | D1: R1 | E1: R2 | F1: R3 | G1: R4 | H1: Voz | I1: Unidade | J1: R12 | K1: R34 | L1: Req | M1: Resposta do aluno | O1: Resultado | Q1: Início | R1: Ajuda | S1: Auxiliar voz | T1: Botão Resposta | U1: Aux. resistor | V1: Inicial | W1: Tempo | Y1: Tempo prova | Z1: Tempo faltante | AA1: Restante | AC1: Aux. tempo | AD1: Registro | AE1: Nome | AF1: Senha | AG1: Senha digitada | AH1: Senha correta | AI1: Reg. escolhido | AJ1: Nome escolhido | AK1: Aux. Senha | AM1: Data | AN1: Nome | AO1: Prova | AP1: Amarelo | AQ1: Vermelho | AR1: Senha | AS1: Data | AT1: Aux. Tempo | AU1: Prova | AW1: Aux. Início Prova
A2: H10 | B2: 4 | C2: =IFERROR(VLOOKUP($B$2,$B$7:$C$24,2,0),"") -> 100 | H2: M | I2: Ω | J2: =IFERROR(IF(OR(D3="ABERTO",E3="ABERTO"),"ABERTO",D3+E3),"") ->  | K2: =IFERROR(IF(OR(F3="ABERTO",G3="ABERTO"),"ABERTO",F3+G3),"") ->  | L2: =IF(AND(J2="ABERTO",K2<>"ABERTO"),K2,IF(AND(J2<>"ABERTO",K2="ABERTO"),J2,IF(AND(J2="ABERTO",K2="ABERTO"),"ABERTO",IF(AND(J2=0,K2=0),0,IFERROR((J2*K2)/(J2+K2),""))))) ->  | M2: 0 | N2: 0.00 | O2: =IF(L2=0,0,IFERROR(IF(L2="",100,(N2-L2)/L2),"")) -> 100 | P2: =IFERROR(IF(ABS(O2)<=0.005,1,0),"") -> 0 | Q2: 1 | R2: 0 | S2: 0 | T2: 1 | U2: 4 | V2: 48,628.7 | W2: 00:00:34.301 | X2: =MINUTE(W2)*60+SECOND(W2) -> 34 | Y2: 2,700 | Z2: =IF((Y2-X2)<0,0,(Y2-X2)) -> 2,666 | AA2: ="00:"&INT(Z2/60)&":"&Z2-INT(Z2/60)*60 -> 00:44:26 | AB2: =TEXT(AA2,"mm:ss") -> 44:26 | AC2: 0 | AD2: 22150 | AE2: Antonio de Almeida | AF2: 22150 | AG2: 22154 | AH2: =IFERROR(VLOOKUP(AI2,$AD$2:$AF$12,3,0),"") -> 22154 | AI2: 22154 | AJ2: =IFERROR(VLOOKUP(AI2,AD2:AF12,2,0),"") -> Fernanda da Silva | AK2: 0 | AL2: 1 | AM2: =TEXT(DAY(NOW()),"00")&"-"&TEXT(MONTH(NOW()),"00")&"-"&TEXT(YEAR(NOW()),"00") -> 05-03-2024 | AN2: =AG2&" "&AM2 -> 22154 05-03-2024 | AO2: =IF($AI$2=AD2,1,0) -> 0 | AP2: 900 | AQ2: 300 | AR2: EPC@ECS_2016 | AS2: =TEXT(DAY(NOW()),"00")&"/"&TEXT(MONTH(NOW()),"00")&"/"&TEXT(YEAR(NOW()),"00") -> 05/03/2024 | AT2: 1 | AU2: X | AV2: =IF(AU2=""," "&AD2,AU2&" "&AD2) -> X 22150 | AW2: 0
A3: =IF(A2="F5","F4",IF(A2="H5","H4",IF(A2="F10","F9",IF(A2="H10","H9","")))) -> H9 | D3: =IF(D2="","",(VLOOKUP(D2,$B$7:$D$24,3,0))) ->  | E3: =IF(E2="","",(VLOOKUP(E2,$B$7:$D$24,3,0))) ->  | AD3: 22151 | AE3: Bernardo de Oliveira | AF3: 22151 | AO3: =IF($AI$2=AD3,1,0) -> 0 | AV3: 22151
AD4: 22152 | AE4: Cristina Antunes | AF4: 22152 | AO4: 0 | AV4: 22152
A5: Valor dos resistores | B5: 5 | C5: Valores | E5: Cores dos resistores | AD5: 22153 | AE5: Dagoberto Barbosa | AF5: 22153 | AO5: 0 | AV5: =IF(AU5=""," "&AD5,AU5&" "&AD5) -> 22153
C6: Nominal | D6: Absoluto | E6: 1ª banda | H6: 2ª banda | K6: Multiplicador | N6: Tolerância | AD6: 22154 | AE6: Fernanda da Silva | AF6: 22154 | AO6: 1 | AU6: X | AV6: X 22154
B7: 0 | C7: ABERTO | D7: ABERTO | AD7: 22155 | AE7: Gilberto Pereira | AF7: 22155 | AO7: 0 | AV7: 22155
B8: 1 | C8: CURTO | D8: 0 | AD8: 22156 | AE8: Haroldo Carvalho | AF8: 22156 | AO8: 0 | AV8: 22156
B9: 2 | C9: 1 | D9: 1 | E9: 150 | F9: 75 | G9: 0 | H9: 0 | I9: 0 | J9: 0 | K9: 218 | L9: 165 | M9: 32 | N9: 150 | O9: 75 | P9: 0 | AD9: 22157 | AE9: Marcelo Sato | AF9: 22157 | AO9: 0 | AV9: 22157
B10: 3 | C10: 10 | D10: 10 | E10: 150 | F10: 75 | G10: 0 | H10: 0 | I10: 0 | J10: 0 | K10: 0 | L10: 0 | M10: 0 | N10: 150 | O10: 75 | P10: 0 | AD10: 22158 | AE10: Nádia de Souza | AF10: 22158 | AO10: 0 | AV10: 22158
B11: 4 | C11: 100 | D11: 100 | E11: 150 | F11: 75 | G11: 0 | H11: 0 | I11: 0 | J11: 0 | K11: 150 | L11: 75 | M11: 0 | N11: 150 | O11: 75 | P11: 0 | AD11: 22159 | AE11: Paulo dos Santos | AF11: 22159 | AO11: 0 | AV11: 22159
B12: 5 | C12: 120 | D12: 120 | E12: 150 | F12: 75 | G12: 0 | H12: 255 | I12: 0 | J12: 0 | K12: 150 | L12: 75 | M12: 0 | N12: 150 | O12: 75 | P12: 0 | AD12: 22160 | AE12: Ricardo Mello | AF12: 22160 | AO12: 0 | AV12: 22160
B13: 6 | C13: 150 | D13: 150 | E13: 150 | F13: 75 | G13: 0 | H13: 0 | I13: 255 | J13: 0 | K13: 150 | L13: 75 | M13: 0 | N13: 150 | O13: 75 | P13: 0
B14: 7 | C14: 180 | D14: 180 | E14: 150 | F14: 75 | G14: 0 | H14: 192 | I14: 192 | J14: 192 | K14: 150 | L14: 75 | M14: 0 | N14: 150 | O14: 75 | P14: 0
B15: 8 | C15: 220 | D15: 220 | E15: 255 | F15: 0 | G15: 0 | H15: 255 | I15: 0 | J15: 0 | K15: 150 | L15: 75 | M15: 0 | N15: 150 | O15: 75 | P15: 0
B16: 9 | C16: 470 | D16: 470 | E16: 255 | F16: 255 | G16: 0 | H16: 238 | I16: 130 | J16: 238 | K16: 150 | L16: 75 | M16: 0 | N16: 150 | O16: 75 | P16: 0
B17: 10 | C17: 1K | D17: 1000 | E17: 150 | F17: 75 | G17: 0 | H17: 0 | I17: 0 | J17: 0 | K17: 255 | L17: 0 | M17: 0 | N17: 150 | O17: 75 | P17: 0
B18: 11 | C18: 2K2 | D18: 2200 | E18: 255 | F18: 0 | G18: 0 | H18: 255 | I18: 0 | J18: 0 | K18: 255 | L18: 0 | M18: 0 | N18: 150 | O18: 75 | P18: 0
B19: 12 | C19: 3K9 | D19: 3900 | E19: 255 | F19: 165 | G19: 0 | H19: 255 | I19: 255 | J19: 255 | K19: 255 | L19: 0 | M19: 0 | N19: 150 | O19: 75 | P19: 0
B20: 13 | C20: 5K6 | D20: 5600 | E20: 0 | F20: 255 | G20: 0 | H20: 0 | I20: 0 | J20: 255 | K20: 255 | L20: 0 | M20: 0 | N20: 150 | O20: 75 | P20: 0
B21: 14 | C21: 6K8 | D21: 6800 | E21: 0 | F21: 0 | G21: 255 | H21: 192 | I21: 192 | J21: 192 | K21: 255 | L21: 0 | M21: 0 | N21: 150 | O21: 75 | P21: 0
B22: 15 | C22: 8K2 | D22: 8200 | E22: 192 | F22: 192 | G22: 192 | H22: 255 | I22: 0 | J22: 0 | K22: 255 | L22: 0 | M22: 0 | N22: 150 | O22: 75 | P22: 0
B23: 16 | C23: 9K1 | D23: 9100 | E23: 255 | F23: 255 | G23: 255 | H23: 150 | I23: 75 | J23: 0 | K23: 255 | L23: 0 | M23: 0 | N23: 150 | O23: 75 | P23: 0
B24: 17 | C24: 10K | D24: 10000 | E24: 150 | F24: 75 | G24: 0 | H24: 0 | I24: 0 | J24: 0 | K24: 255 | L24: 165 | M24: 0 | N24: 150 | O24: 75 | P24: 0
A26: Teste 1 | I26: Teste 2 | Q26: Teste 3 | Y26: Teste 4 | AG26: Teste 5 | AO26: Teste 6 | AW26: Teste 7 | BE26: Teste 8 | BM26: Teste 9 | BU26: Teste 10
A27: Resistor | B27: Item | C27: Valor | D27: Resposta | G27: Aluno | I27: Resistor | J27: Item | K27: Valor | L27: Resposta | O27: Aluno | Q27: Resistor | R27: Item | S27: Valor | T27: Resposta | W27: Aluno | Y27: Resistor | Z27: Item | AA27: Valor | AB27: Resposta | AE27: Aluno | AG27: Resistor | AH27: Item | AI27: Valor | AJ27: Resposta | AM27: Aluno | AO27: Resistor | AP27: Item | AQ27: Valor | AR27: Resposta | AU27: Aluno | AW27: Resistor | AX27: Item | AY27: Valor | AZ27: Resposta | BC27: Aluno | BE27: Resistor | BF27: Item | BG27: Valor | BH27: Resposta | BK27: Aluno | BM27: Resistor | BN27: Item | BO27: Valor | BP27: Resposta | BS27: Aluno | BU27: Resistor | BV27: Item | BW27: Valor | BX27: Resposta | CA27: Aluno
A28: R1 | B28: 7 | C28: =VLOOKUP(B28,$B$7:$D$24,3,0) -> 180.00 | D28: 221.00 | E28: 1 | F28: =TEXT(D28,"#.##0,00") -> 221,00 | G28: 2 | H28: =IF(E28=G28,1,0) -> 0 | I28: R1 | J28: 10 | K28: =VLOOKUP(J28,$B$7:$D$24,3,0) -> 1,000.00 | L28: 898.20 | M28: 2 | N28: =TEXT(L28,"#.##0,00") -> 898,20 | O28: 4 | P28: =IF(M28=O28,1,0) -> 0 | Q28: R1 | R28: 8 | S28: =VLOOKUP(R28,$B$7:$D$24,3,0) -> 220.00 | T28: 1,921.16 | U28: 1 | V28: =TEXT(T28,"#.##0,00") -> 1.921,16 | W28: 4 | X28: =IF(U28=W28,1,0) -> 0 | Y28: R1 | Z28: 4 | AA28: =VLOOKUP(Z28,$B$7:$D$24,3,0) -> 100.00 | AB28: 815.38 | AC28: 4 | AD28: =TEXT(AB28,"#.##0,00") -> 815,38 | AF28: =IF(AC28=AE28,1,0) -> 0 | AG28: R1 | AH28: 9 | AI28: =VLOOKUP(AH28,$B$7:$D$24,3,0) -> 470.00 | AJ28: 469.55 | AK28: 1 | AL28: =TEXT(AJ28,"#.##0,00") -> 469,55 | AN28: =IF(AK28=AM28,1,0) -> 0 | AO28: R1 | AP28: 5 | AQ28: =VLOOKUP(AP28,$B$7:$D$24,3,0) -> 120.00 | AR28: 137.61 | AS28: 2 | AT28: =TEXT(AR28,"#.##0,00") -> 137,61 | AV28: =IF(AS28=AU28,1,0) -> 0 | AW28: R1 | AX28: 3 | AY28: =VLOOKUP(AX28,$B$7:$D$24,3,0) -> 10.00 | AZ28: 136.61 | BA28: 2 | BB28: =TEXT(AZ28,"#.##0,00") -> 136,61 | BD28: =IF(BA28=BC28,1,0) -> 0 | BE28: R1 | BF28: 4 | BG28: =VLOOKUP(BF28,$B$7:$D$24,3,0) -> 100.00 | BH28: 986.84 | BI28: 1 | BJ28: =TEXT(BH28,"#.##0,00") -> 986,84 | BL28: =IF(BI28=BK28,1,0) -> 0 | BM28: R1 | BN28: 8 | BO28: =VLOOKUP(BN28,$B$7:$D$24,3,0) -> 220.00 | BP28: 1,470.77 | BQ28: 4 | BR28: =TEXT(BP28,"#.##0,00") -> 1.470,77 | BT28: =IF(BQ28=BS28,1,0) -> 0 | BU28: R1 | BV28: 17 | BW28: =VLOOKUP(BV28,$B$7:$D$24,3,0) -> 10,000.00 | BX28: 104.70 | BY28: 3 | BZ28: =TEXT(BX28,"#.##0,00") -> 104,70 | CB28: =IF(BY28=CA28,1,0) -> 0
A29: R2 | B29: 0 | C29: =VLOOKUP(B29,$B$7:$D$24,3,0) -> ABERTO | D29: 186.15 | F29: =TEXT(D29,"#.##0,00") -> 186,15 | G29: =IF(G28="",0,1) -> 1 | I29: R2 | J29: 3 | K29: =VLOOKUP(J29,$B$7:$D$24,3,0) -> 10.00 | L29: 1,010.00 | N29: =TEXT(L29,"#.##0,00") -> 1.010,00 | O29: =IF(O28="",0,1) -> 1 | Q29: R2 | R29: 11 | S29: =VLOOKUP(R29,$B$7:$D$24,3,0) -> 2,200.00 | T29: 1,636.61 | V29: =TEXT(T29,"#.##0,00") -> 1.636,61 | W29: =IF(W28="",0,1) -> 1 | Y29: R2 | Z29: 13 | AA29: =VLOOKUP(Z29,$B$7:$D$24,3,0) -> 5,600.00 | AB29: 854.19 | AD29: =TEXT(AB29,"#.##0,00") -> 854,19 | AE29: =IF(AE28="",0,1) -> 0 | AG29: R2 | AH29: 5 | AI29: =VLOOKUP(AH29,$B$7:$D$24,3,0) -> 120.00 | AJ29: 399.74 | AL29: =TEXT(AJ29,"#.##0,00") -> 399,74 | AM29: =IF(AM28="",0,1) -> 0 | AO29: R2 | AP29: 3 | AQ29: =VLOOKUP(AP29,$B$7:$D$24,3,0) -> 10.00 | AR29: 119.44 | AT29: =TEXT(AR29,"#.##0,00") -> 119,44 | AU29: =IF(AU28="",0,1) -> 0 | AW29: R2 | AX29: 6 | AY29: =VLOOKUP(AX29,$B$7:$D$24,3,0) -> 150.00 | AZ29: 157.91 | BB29: =TEXT(AZ29,"#.##0,00") -> 157,91 | BC29: =IF(BC28="",0,1) -> 0 | BE29: R2 | BF29: 15 | BG29: =VLOOKUP(BF29,$B$7:$D$24,3,0) -> 8,200.00 | BH29: 840.96 | BJ29: =TEXT(BH29,"#.##0,00") -> 840,96 | BK29: =IF(BK28="",0,1) -> 0 | BM29: R2 | BN29: 13 | BO29: =VLOOKUP(BN29,$B$7:$D$24,3,0) -> 5,600.00 | BP29: 1,895.93 | BR29: =TEXT(BP29,"#.##0,00") -> 1.895,93 | BS29: =IF(BS28="",0,1) -> 0 | BU29: R2 | BV29: 11 | BW29: =VLOOKUP(BV29,$B$7:$D$24,3,0) -> 2,200.00 | BX29: 137.93 | BZ29: =TEXT(BX29,"#.##0,00") -> 137,93 | CA29: =IF(CA28="",0,1) -> 0
A30: R3 | B30: 2 | C30: 1.00 | D30: 255.04 | F30: 255,04 | I30: R3 | J30: 13 | K30: 5,600.00 | L30: 861.73 | N30: 861,73 | Q30: R3 | R30: 16 | S30: 9,100.00 | T30: 1,714.79 | V30: 1.714,79 | Y30: R3 | Z30: 10 | AA30: 1,000.00 | AB30: 1,100.86 | AD30: 1.100,86 | AG30: R3 | AH30: 4 | AI30: 100.00 | AJ30: 417.95 | AL30: 417,95 | AO30: R3 | AP30: 9 | AQ30: 470.00 | AR30: 103.45 | AT30: 103,45 | AW30: R3 | AX30: 15 | AY30: 8,200.00 | AZ30: 141.37 | BB30: 141,37 | BE30: R3 | BF30: 5 | BG30: 120.00 | BH30: 1,136.01 | BJ30: 1.136,01 | BM30: R3 | BN30: 4 | BO30: 100.00 | BP30: 1,402.49 | BR30: 1.402,49 | BU30: R3 | BV30: 1 | BW30: 0.00 | BX30: 118.83 | BZ30: 118,83
A31: R4 | B31: 8 | C31: 220.00 | D31: 191.70 | F31: 191,70 | I31: R4 | J31: 0 | K31: ABERTO | L31: 1,162.14 | N31: 1.162,14 | Q31: R4 | R31: 8 | S31: 220.00 | T31: 2,209.97 | V31: 2.209,97 | Y31: R4 | Z31: 6 | AA31: 150.00 | AB31: 956.93 | AD31: 956,93 | AG31: R4 | AH31: 11 | AI31: 2,200.00 | AJ31: 540.62 | AL31: 540,62 | AO31: R4 | AP31: 10 | AQ31: 1,000.00 | AR31: 103.89 | AT31: 103,89 | AW31: R4 | AX31: 12 | AY31: 3,900.00 | AZ31: 182.11 | BB31: 182,11 | BE31: R4 | BF31: 10 | BG31: 1,000.00 | BH31: 875.70 | BJ31: 875,70 | BM31: R4 | BN31: 11 | BO31: 2,200.00 | BP31: 1,648.52 | BR31: 1.648,52 | BU31: R4 | BV31: 5 | BW31: 120.00 | BX31: 105.03 | BZ31: 105,03
A32: R12 | C32: =IFERROR(IF(OR(C28="ABERTO",C29="ABERTO"),"ABERTO",C28+C29),"") -> ABERTO | I32: R12 | K32: =IFERROR(IF(OR(K28="ABERTO",K29="ABERTO"),"ABERTO",K28+K29),"") -> 1,010.00 | Q32: R12 | S32: =IFERROR(IF(OR(S28="ABERTO",S29="ABERTO"),"ABERTO",S28+S29),"") -> 2,420.00 | Y32: R12 | AA32: =IFERROR(IF(OR(AA28="ABERTO",AA29="ABERTO"),"ABERTO",AA28+AA29),"") -> 5,700.00 | AG32: R12 | AI32: =IFERROR(IF(OR(AI28="ABERTO",AI29="ABERTO"),"ABERTO",AI28+AI29),"") -> 590.00 | AO32: R12 | AQ32: =IFERROR(IF(OR(AQ28="ABERTO",AQ29="ABERTO"),"ABERTO",AQ28+AQ29),"") -> 130.00 | AW32: R12 | AY32: =IFERROR(IF(OR(AY28="ABERTO",AY29="ABERTO"),"ABERTO",AY28+AY29),"") -> 160.00 | BE32: R12 | BG32: =IFERROR(IF(OR(BG28="ABERTO",BG29="ABERTO"),"ABERTO",BG28+BG29),"") -> 8,300.00 | BM32: R12 | BO32: =IFERROR(IF(OR(BO28="ABERTO",BO29="ABERTO"),"ABERTO",BO28+BO29),"") -> 5,820.00 | BU32: R12 | BW32: =IFERROR(IF(OR(BW28="ABERTO",BW29="ABERTO"),"ABERTO",BW28+BW29),"") -> 12,200.00
A33: R34 | C33: =IFERROR(IF(OR(C30="ABERTO",C31="ABERTO"),"ABERTO",C30+C31),"") -> 221.00 | I33: R34 | K33: =IFERROR(IF(OR(K30="ABERTO",K31="ABERTO"),"ABERTO",K30+K31),"") -> ABERTO | Q33: R34 | S33: =IFERROR(IF(OR(S30="ABERTO",S31="ABERTO"),"ABERTO",S30+S31),"") -> 9,320.00 | Y33: R34 | AA33: =IFERROR(IF(OR(AA30="ABERTO",AA31="ABERTO"),"ABERTO",AA30+AA31),"") -> 1,150.00 | AG33: R34 | AI33: =IFERROR(IF(OR(AI30="ABERTO",AI31="ABERTO"),"ABERTO",AI30+AI31),"") -> 2,300.00 | AO33: R34 | AQ33: =IFERROR(IF(OR(AQ30="ABERTO",AQ31="ABERTO"),"ABERTO",AQ30+AQ31),"") -> 1,470.00 | AW33: R34 | AY33: =IFERROR(IF(OR(AY30="ABERTO",AY31="ABERTO"),"ABERTO",AY30+AY31),"") -> 12,100.00 | BE33: R34 | BG33: =IFERROR(IF(OR(BG30="ABERTO",BG31="ABERTO"),"ABERTO",BG30+BG31),"") -> 1,120.00 | BM33: R34 | BO33: =IFERROR(IF(OR(BO30="ABERTO",BO31="ABERTO"),"ABERTO",BO30+BO31),"") -> 2,300.00 | BU33: R34 | BW33: =IFERROR(IF(OR(BW30="ABERTO",BW31="ABERTO"),"ABERTO",BW30+BW31),"") -> 120.00
A34: Req | C34: =IFERROR(IF(AND(C32="ABERTO",C33<>"ABERTO"),C33,IF(AND(C32<>"ABERTO",C33="ABERTO"),C32,IF(AND(C32="ABERTO",C33="ABERTO"),"ABERTO",(C32*C33)/(C32+C33)))),"") -> 221.00 | I34: Req | K34: =IFERROR(IF(AND(K32="ABERTO",K33<>"ABERTO"),K33,IF(AND(K32<>"ABERTO",K33="ABERTO"),K32,IF(AND(K32="ABERTO",K33="ABERTO"),"ABERTO",(K32*K33)/(K32+K33)))),"") -> 1,010.00 | Q34: Req | S34: =IFERROR(IF(AND(S32="ABERTO",S33<>"ABERTO"),S33,IF(AND(S32<>"ABERTO",S33="ABERTO"),S32,IF(AND(S32="ABERTO",S33="ABERTO"),"ABERTO",(S32*S33)/(S32+S33)))),"") -> 1,921.16 | Y34: Req | AA34: =IFERROR(IF(AND(AA32="ABERTO",AA33<>"ABERTO"),AA33,IF(AND(AA32<>"ABERTO",AA33="ABERTO"),AA32,IF(AND(AA32="ABERTO",AA33="ABERTO"),"ABERTO",(AA32*AA33)/(AA32+AA33)))),"") -> 956.93 | AG34: Req | AI34: =IFERROR(IF(AND(AI32="ABERTO",AI33<>"ABERTO"),AI33,IF(AND(AI32<>"ABERTO",AI33="ABERTO"),AI32,IF(AND(AI32="ABERTO",AI33="ABERTO"),"ABERTO",(AI32*AI33)/(AI32+AI33)))),"") -> 469.55 | AO34: Req | AQ34: =IFERROR(IF(AND(AQ32="ABERTO",AQ33<>"ABERTO"),AQ33,IF(AND(AQ32<>"ABERTO",AQ33="ABERTO"),AQ32,IF(AND(AQ32="ABERTO",AQ33="ABERTO"),"ABERTO",(AQ32*AQ33)/(AQ32+AQ33)))),"") -> 119.44 | AW34: Req | AY34: =IFERROR(IF(AND(AY32="ABERTO",AY33<>"ABERTO"),AY33,IF(AND(AY32<>"ABERTO",AY33="ABERTO"),AY32,IF(AND(AY32="ABERTO",AY33="ABERTO"),"ABERTO",(AY32*AY33)/(AY32+AY33)))),"") -> 157.91 | BE34: Req | BG34: =IFERROR(IF(AND(BG32="ABERTO",BG33<>"ABERTO"),BG33,IF(AND(BG32<>"ABERTO",BG33="ABERTO"),BG32,IF(AND(BG32="ABERTO",BG33="ABERTO"),"ABERTO",(BG32*BG33)/(BG32+BG33)))),"") -> 986.84 | BM34: Req | BO34: =IFERROR(IF(AND(BO32="ABERTO",BO33<>"ABERTO"),BO33,IF(AND(BO32<>"ABERTO",BO33="ABERTO"),BO32,IF(AND(BO32="ABERTO",BO33="ABERTO"),"ABERTO",(BO32*BO33)/(BO32+BO33)))),"") -> 1,648.52 | BU34: Req | BW34: =IFERROR(IF(AND(BW32="ABERTO",BW33<>"ABERTO"),BW33,IF(AND(BW32<>"ABERTO",BW33="ABERTO"),BW32,IF(AND(BW32="ABERTO",BW33="ABERTO"),"ABERTO",(BW32*BW33)/(BW32+BW33)))),"") -> 118.83
A36: Teste | B36: Nota | C36: Respondidas | D36: Início teste
A37: 0 | B37: =TEXT(H28+P28+X28+AF28+AN28+AV28+BD28+BL28+BT28+CB28,"#.##0,0") -> 0,0 | C37: =G29+O29+W29+AE29+AM29+AU29+BC29+BK29+BS29+CA29 -> 3 | D37: 1

Sheet Prova
E2: EPC AUTOMAÇÃO LIMITADA
E3: Rua Eliza Flaquer, 70, sala 124 - Centro - Santo André
E4: CEP: 09020-160 - (11) 2379-4702
E5: www.epcautomacao.com.br
B7: Curso: Eletrônica | H7: Prova A1 | J7: ="Data: "&Dados!AS2 -> Data: 05/03/2024
B8: Disciplina: Eletrônica Básica
B9: Prof.: Marcelo Junqueira | M9: Série: 2ª N
B10: ="Aluno: " & Dados!AJ2 -> Aluno: Fernanda da Silva | M10: ="Registro: "&Dados!AI2 -> Registro: 22154
B11: Questões | D11: 1 | E11: 2 | F11: 3 | G11: 4 | H11: 5 | I11: 6 | J11: 7 | K11: 8 | L11: 9 | M11: 10 | N11: Nota final
B12: Nota parcial | D12: =Dados!H28 -> 0.0 | E12: =Dados!P28 -> 0.0 | F12: =Dados!X28 -> 0.0 | G12: =Dados!AF28 -> 0.0 | H12: =Dados!AN28 -> 0.0 | I12: =Dados!AV28 -> 0.0 | J12: =Dados!BD28 -> 0.0 | K12: =Dados!BL28 -> 0.0 | L12: =Dados!BT28 -> 0.0 | M12: =Dados!CB28 -> 0.0 | N12: =Dados!B37 -> 0,0
B14: Questões:
B16: 1) Qual a resistência equivalente (Req) do circuito?
C17: ="R1 = "&Dados!C28&IF(Dados!C28="ABERTO",""," "&Dados!$I$2) -> R1 = 180 Ω | F17: ="R2 = "&Dados!C29&IF(Dados!C29="ABERTO",""," "&Dados!$I$2) -> R2 = ABERTO | I17: ="R3 = "&Dados!C30&IF(Dados!C30="ABERTO",""," "&Dados!$I$2) -> R3 = 1 Ω | L17: ="R4 = "&Dados!C31&IF(Dados!C31="ABERTO",""," "&Dados!$I$2) -> R4 = 220 Ω
C19: Resp. aluno
C20: =IF(Dados!$G$28=1,"X","") ->  | D20: =" a) "&TEXT(Dados!F28,"0,00")&" "&Dados!$I$2 -> a) 221,00 Ω
C21: =IF(Dados!$G$28=2,"X","") -> X | D21: =" b) "&TEXT(Dados!F29,"0,00")&" "&Dados!$I$2 -> b) 186,15 Ω
C22: =IF(Dados!$G$28=3,"X","") ->  | D22: =" c) "&TEXT(Dados!F30,"0,00")&" "&Dados!$I$2 -> c) 255,04 Ω
C23: =IF(Dados!$G$28=4,"X","") ->  | D23: =" d) "&TEXT(Dados!F31,"0,00")&" "&Dados!$I$2 -> d) 191,70 Ω
B25: 2) Qual a resistência equivalente (Req) do circuito?
C26: ="R1 = "&Dados!K28&IF(Dados!K28="ABERTO",""," "&Dados!$I$2) -> R1 = 1000 Ω | F26: ="R2 = "&Dados!K29&IF(Dados!K29="ABERTO",""," "&Dados!$I$2) -> R2 = 10 Ω | I26: ="R3 = "&Dados!K30&IF(Dados!K30="ABERTO",""," "&Dados!$I$2) -> R3 = 5600 Ω | L26: ="R4 = "&Dados!K31&IF(Dados!K31="ABERTO",""," "&Dados!$I$2) -> R4 = ABERTO
C28: Resp. aluno
C29: =IF(Dados!$O$28=1,"X","") ->  | D29: =" a) "&TEXT(Dados!N28,"0,00")&" "&Dados!$I$2 -> a) 898,20 Ω
C30: =IF(Dados!$O$28=2,"X","") ->  | D30: =" b) "&TEXT(Dados!N29,"0,00")&" "&Dados!$I$2 -> b) 1010,00 Ω
C31: =IF(Dados!$O$28=3,"X","") ->  | D31: =" c) "&TEXT(Dados!N30,"0,00")&" "&Dados!$I$2 -> c) 861,73 Ω
C32: =IF(Dados!$O$28=4,"X","") -> X | D32: =" d) "&TEXT(Dados!N31,"0,00")&" "&Dados!$I$2 -> d) 1162,14 Ω
B34: 3) Qual a resistência equivalente (Req) do circuito?
C35: ="R1 = "&Dados!S28&IF(Dados!S28="ABERTO",""," "&Dados!$I$2) -> R1 = 220 Ω | F35: ="R2 = "&Dados!S29&IF(Dados!S29="ABERTO",""," "&Dados!$I$2) -> R2 = 2200 Ω | I35: ="R3 = "&Dados!S30&IF(Dados!S30="ABERTO",""," "&Dados!$I$2) -> R3 = 9100 Ω | L35: ="R4 = "&Dados!S31&IF(Dados!S31="ABERTO",""," "&Dados!$I$2) -> R4 = 220 Ω
C37: Resp. aluno
C38: =IF(Dados!$W$28=1,"X","") ->  | D38: =" a) "&TEXT(Dados!V28,"0,00")&" "&Dados!$I$2 -> a) 1921,16 Ω
C39: =IF(Dados!$W$28=2,"X","") ->  | D39: =" b) "&TEXT(Dados!V29,"0,00")&" "&Dados!$I$2 -> b) 1636,61 Ω
C40: =IF(Dados!$W$28=3,"X","") ->  | D40: =" c) "&TEXT(Dados!V30,"0,00")&" "&Dados!$I$2 -> c) 1714,79 Ω
C41: =IF(Dados!$W$28=4,"X","") -> X | D41: =" d) "&TEXT(Dados!V31,"0,00")&" "&Dados!$I$2 -> d) 2209,97 Ω
B43: 4) Qual a resistência equivalente (Req) do circuito?
C44: ="R1 = "&Dados!AA28&IF(Dados!AA28="ABERTO",""," "&Dados!$I$2) -> R1 = 100 Ω | F44: ="R2 = "&Dados!AA29&IF(Dados!AA29="ABERTO",""," "&Dados!$I$2) -> R2 = 5600 Ω | I44: ="R3 = "&Dados!AA30&IF(Dados!AA30="ABERTO",""," "&Dados!$I$2) -> R3 = 1000 Ω | L44: ="R4 = "&Dados!AA31&IF(Dados!AA31="ABERTO",""," "&Dados!$I$2) -> R4 = 150 Ω
C46: Resp. aluno
C47: =IF(Dados!$AE$28=1,"X","") ->  | D47: =" a) "&TEXT(Dados!AD28,"0,00")&" "&Dados!$I$2 -> a) 815,38 Ω
C48: =IF(Dados!$AE$28=2,"X","") ->  | D48: =" b) "&TEXT(Dados!AD29,"0,00")&" "&Dados!$I$2 -> b) 854,19 Ω
C49: =IF(Dados!$AE$28=3,"X","") ->  | D49: =" c) "&TEXT(Dados!AD30,"0,00")&" "&Dados!$I$2 -> c) 1100,86 Ω
C50: =IF(Dados!$AE$28=4,"X","") ->  | D50: =" d) "&TEXT(Dados!AD31,"0,00")&" "&Dados!$I$2 -> d) 956,93 Ω | N50: Pág. 1 de 2
B52: 5) Qual a resistência equivalente (Req) do circuito?
C53: ="R1 = "&Dados!AI28&IF(Dados!AI28="ABERTO",""," "&Dados!$I$2) -> R1 = 470 Ω | F53: ="R2 = "&Dados!AI29&IF(Dados!AI29="ABERTO",""," "&Dados!$I$2) -> R2 = 120 Ω | I53: ="R3 = "&Dados!AI30&IF(Dados!AI30="ABERTO",""," "&Dados!$I$2) -> R3 = 100 Ω | L53: ="R4 = "&Dados!AI31&IF(Dados!AI31="ABERTO",""," "&Dados!$I$2) -> R4 = 2200 Ω
C55: Resp. aluno
C56: =IF(Dados!$AM$28=1,"X","") ->  | D56: =" a) "&TEXT(Dados!AL28,"0,00")&" "&Dados!$I$2 -> a) 469,55 Ω
C57: =IF(Dados!$AM$28=2,"X","") ->  | D57: =" b) "&TEXT(Dados!AL29,"0,00")&" "&Dados!$I$2 -> b) 399,74 Ω
C58: =IF(Dados!$AM$28=3,"X","") ->  | D58: =" c) "&TEXT(Dados!AL30,"0,00")&" "&Dados!$I$2 -> c) 417,95 Ω
C59: =IF(Dados!$AM$28=4,"X","") ->  | D59: =" d) "&TEXT(Dados!AL31,"0,00")&" "&Dados!$I$2 -> d) 540,62 Ω
B61: 6) Qual a resistência equivalente (Req) do circuito?
C62: ="R1 = "&Dados!AQ28&IF(Dados!AQ28="ABERTO",""," "&Dados!$I$2) -> R1 = 120 Ω | F62: ="R2 = "&Dados!AQ29&IF(Dados!AQ29="ABERTO",""," "&Dados!$I$2) -> R2 = 10 Ω | I62: ="R3 = "&Dados!AQ30&IF(Dados!AQ30="ABERTO",""," "&Dados!$I$2) -> R3 = 470 Ω | L62: ="R4 = "&Dados!AQ31&IF(Dados!AQ31="ABERTO",""," "&Dados!$I$2) -> R4 = 1000 Ω
C64: Resp. aluno
C65: =IF(Dados!$AU$28=1,"X","") ->  | D65: =" a) "&TEXT(Dados!AT28,"0,00")&" "&Dados!$I$2 -> a) 137,61 Ω
C66: =IF(Dados!$AU$28=2,"X","") ->  | D66: =" b) "&TEXT(Dados!AT29,"0,00")&" "&Dados!$I$2 -> b) 119,44 Ω
C67: =IF(Dados!$AU$28=3,"X","") ->  | D67: =" c) "&TEXT(Dados!AT30,"0,00")&" "&Dados!$I$2 -> c) 103,45 Ω
C68: =IF(Dados!$AU$28=4,"X","") ->  | D68: =" d) "&TEXT(Dados!AT31,"0,00")&" "&Dados!$I$2 -> d) 103,89 Ω
B70: 7) Qual a resistência equivalente (Req) do circuito?
C71: ="R1 = "&Dados!AY28&IF(Dados!AY28="ABERTO",""," "&Dados!$I$2) -> R1 = 10 Ω | F71: ="R2 = "&Dados!AY29&IF(Dados!AY29="ABERTO",""," "&Dados!$I$2) -> R2 = 150 Ω | I71: ="R3 = "&Dados!AY30&IF(Dados!AY30="ABERTO",""," "&Dados!$I$2) -> R3 = 8200 Ω | L71: ="R4 = "&Dados!AY31&IF(Dados!AY31="ABERTO",""," "&Dados!$I$2) -> R4 = 3900 Ω
C73: Resp. aluno
C74: =IF(Dados!$BC$28=1,"X","") ->  | D74: =" a) "&TEXT(Dados!BB28,"0,00")&" "&Dados!$I$2 -> a) 136,61 Ω
C75: =IF(Dados!$BC$28=2,"X","") ->  | D75: =" b) "&TEXT(Dados!BB29,"0,00")&" "&Dados!$I$2 -> b) 157,91 Ω
C76: =IF(Dados!$BC$28=3,"X","") ->  | D76: =" c) "&TEXT(Dados!BB30,"0,00")&" "&Dados!$I$2 -> c) 141,37 Ω
C77: =IF(Dados!$BC$28=4,"X","") ->  | D77: =" d) "&TEXT(Dados!BB31,"0,00")&" "&Dados!$I$2 -> d) 182,11 Ω
B79: 8) Qual a resistência equivalente (Req) do circuito?
C80: ="R1 = "&Dados!BG28&IF(Dados!BG28="ABERTO",""," "&Dados!$I$2) -> R1 = 100 Ω | F80: ="R2 = "&Dados!BG29&IF(Dados!BG29="ABERTO",""," "&Dados!$I$2) -> R2 = 8200 Ω | I80: ="R3 = "&Dados!BG30&IF(Dados!BG30="ABERTO",""," "&Dados!$I$2) -> R3 = 120 Ω | L80: ="R4 = "&Dados!BG31&IF(Dados!BG31="ABERTO",""," "&Dados!$I$2) -> R4 = 1000 Ω
C82: Resp. aluno
C83: =IF(Dados!$BK$28=1,"X","") ->  | D83: =" a) "&TEXT(Dados!BJ28,"0,00")&" "&Dados!$I$2 -> a) 986,84 Ω
C84: =IF(Dados!$BK$28=2,"X","") ->  | D84: =" b) "&TEXT(Dados!BJ29,"0,00")&" "&Dados!$I$2 -> b) 840,96 Ω
C85: =IF(Dados!$BK$28=3,"X","") ->  | D85: =" c) "&TEXT(Dados!BJ30,"0,00")&" "&Dados!$I$2 -> c) 1136,01 Ω
C86: =IF(Dados!$BK$28=4,"X","") ->  | D86: =" d) "&TEXT(Dados!BJ31,"0,00")&" "&Dados!$I$2 -> d) 875,70 Ω
B88: 9) Qual a resistência equivalente (Req) do circuito?
C89: ="R1 = "&Dados!BO28&IF(Dados!BO28="ABERTO",""," "&Dados!$I$2) -> R1 = 220 Ω | F89: ="R2 = "&Dados!BO29&IF(Dados!BO29="ABERTO",""," "&Dados!$I$2) -> R2 = 5600 Ω | I89: ="R3 = "&Dados!BO30&IF(Dados!BO30="ABERTO",""," "&Dados!$I$2) -> R3 = 100 Ω | L89: ="R4 = "&Dados!BO31&IF(Dados!BO31="ABERTO",""," "&Dados!$I$2) -> R4 = 2200 Ω
C91: Resp. aluno
C92: =IF(Dados!$BS$28=1,"X","") ->  | D92: =" a) "&TEXT(Dados!BR28,"0,00")&" "&Dados!$I$2 -> a) 1470,77 Ω
C93: =IF(Dados!$BS$28=2,"X","") ->  | D93: =" b) "&TEXT(Dados!BR29,"0,00")&" "&Dados!$I$2 -> b) 1895,93 Ω
C94: =IF(Dados!$BS$28=3,"X","") ->  | D94: =" c) "&TEXT(Dados!BR30,"0,00")&" "&Dados!$I$2 -> c) 1402,49 Ω
C95: =IF(Dados!$BS$28=4,"X","") ->  | D95: =" d) "&TEXT(Dados!BR31,"0,00")&" "&Dados!$I$2 -> d) 1648,52 Ω
B97: 10) Qual a resistência equivalente (Req) do circuito?
C98: ="R1 = "&Dados!BW28&IF(Dados!BW28="ABERTO",""," "&Dados!$I$2) -> R1 = 10000 Ω | F98: ="R2 = "&Dados!BW29&IF(Dados!BW29="ABERTO",""," "&Dados!$I$2) -> R2 = 2200 Ω | I98: ="R3 = "&Dados!BW30&IF(Dados!BW30="ABERTO",""," "&Dados!$I$2) -> R3 = 0 Ω | L98: ="R4 = "&Dados!BW31&IF(Dados!BW31="ABERTO",""," "&Dados!$I$2) -> R4 = 120 Ω
C100: Resp. aluno
C101: =IF(Dados!$CA$28=1,"X","") ->  | D101: =" a) "&TEXT(Dados!BZ28,"0,00")&" "&Dados!$I$2 -> a) 104,70 Ω
C102: =IF(Dados!$CA$28=2,"X","") ->  | D102: =" b) "&TEXT(Dados!BZ29,"0,00")&" "&Dados!$I$2 -> b) 137,93 Ω
C103: =IF(Dados!$CA$28=3,"X","") ->  | D103: =" c) "&TEXT(Dados!BZ30,"0,00")&" "&Dados!$I$2 -> c) 118,83 Ω
C104: =IF(Dados!$CA$28=4,"X","") ->  | D104: =" d) "&TEXT(Dados!BZ31,"0,00")&" "&Dados!$I$2 -> d) 105,03 Ω | N104: Pág. 2 de 2

Sheet Tempo (hidden)
A1: Tempo faltante
A2: 2666
